fUSD/lending_fUSD_20260218
["ID","MTS","AMOUNT","RATE_DAILY","PERIOD"]
[405954645,1771446645495,-156.0,0.00014437,3]
[405954646,1771446645505,-156.0,0.00014835,3]
[405954647,1771446645514,-151.0,0.00014913,2]
[405954648,1771446645523,-150.0,0.00014916,2]
[405954649,1771446645531,-1275.0,0.00014916,2]
[405954650,1771446645541,-1209.0,0.00014916,2]
[405954651,1771446645551,-162.74,0.00014916,2]
[405954652,1771446645562,-3528.442,0.00014916,2]
[405954653,1771446645571,-1555.0,0.00015,2]
[405954654,1771446645582,-250.0,0.00015,2]
[405954655,1771446645594,-900.0,0.00015068,2]
[405954656,1771446645604,-340.0042292,0.00015238,2]
[405954657,1771446645615,-41155.84305179,0.00015433,2]
[405954658,1771446645624,-156.0,0.00015631,3]
[405954659,1771446645633,-200.0,0.00015647,2]
[405954660,1771446645641,-599.60298507,0.00015679,2]
[405954661,1771446645650,-303.0,0.000157,2]
[405954662,1771446645659,-156.0,0.00015949,3]
[405954663,1771446645667,-268.0,0.00015986,2]
[405954664,1771446645678,-150.0,0.00015986,2]
[405954665,1771446645687,-172.182,0.00015986,2]
[405954666,1771446645698,-150.0,0.00015986,2]
[405954667,1771446645708,-150.0,0.00015986,2]
[405954668,1771446645719,-150.0,0.00015986,2]
[405954669,1771446645729,-150.0,0.00015986,2]
[405954670,1771446645739,-150.0,0.00015986,2]
[405954671,1771446645749,-150.0,0.00015986,2]
[405954672,1771446645759,-150.0,0.00015986,2]
[405954673,1771446645769,-507.0,0.0001605,2]
[405954674,1771446645781,-24605.17211002,0.000162,5]
[405954675,1771446645792,-340.0042292,0.000163,2]
[405954676,1771446645802,-50341.0,0.0001638,2]
[405954677,1771446645813,-2836.0,0.000164,2]
[405954678,1771446645823,-156.0,0.00016427,3]
[405954679,1771446645835,-900.0,0.00016438,2]
[405954681,1771446645844,-41155.84305179,0.00016667,2]
[405954682,1771446645854,-167.05,0.00016712,2]
[405954683,1771446645865,-1338.0,0.00016773,2]
[405954684,1771446645876,-431.0,0.000168,2]
[405954685,1771446645885,-151.0,0.00016917,2]
[405954686,1771446645895,-300.0,0.00016919,2]
[405954687,1771446645904,-50341.0,0.0001692,2]
[405954688,1771446645914,-151.0,0.0001692,2]
[405954689,1771446645924,-151.0,0.0001692,2]
[405954690,1771446645935,-300.0,0.00017,2]
[405954691,1771446645945,-507.0,0.00017019,2]
[405954693,1771446645955,-160.0,0.00017087,2]
[405954695,1771446645964,-156.0,0.00017223,3]
[405954697,1771446645974,-350.0,0.00017312,2]
[405954699,1771446645984,-350.0,0.00017387,2]
[405954701,1771446645993,-350.0,0.00017398,2]
[405954703,1771446646003,-300.0,0.00017459,2]
[405954704,1771446646012,-50341.0,0.0001746,2]
[405954706,1771446646022,-156.0,0.00017462,3]
[405954708,1771446646032,-350.0,0.0001757,2]
[405954711,1771446646041,-2805.11761858,0.0001764,2]
[405954713,1771446646051,-2836.0,0.0001768,2]
[405954715,1771446646060,-150.0,0.00017698,2]
[405954717,1771446646071,-500.0,0.00017698,2]
[405954719,1771446646080,-881.0,0.00017698,2]
[405954721,1771446646089,-681.0,0.00017698,2]
[405954722,1771446646100,-500.0,0.00017698,2]
[405954725,1771446646110,-500.0,0.00017698,2]
[405954727,1771446646120,-150.0,0.00017698,2]
[405954730,1771446646129,-500.0,0.00017698,2]
[405954732,1771446646138,-150.0,0.00017698,2]
[405954734,1771446646147,-565.0,0.00017698,2]
[405954736,1771446646156,-500.0,0.00017753,2]
[405954737,1771446646165,-881.0,0.00017753,2]
[405954739,1771446646174,-681.0,0.00017753,2]
[405954742,1771446646185,-500.0,0.00017753,2]
[405954744,1771446646199,-500.0,0.00017753,2]
[405954745,1771446646208,-500.0,0.00017753,2]
[405954748,1771446646217,-565.0,0.00017753,2]
[405954749,1771446646227,-500.0,0.00017808,2]
[405954750,1771446646238,-881.0,0.00017808,2]
[405954751,1771446646247,-681.0,0.00017808,2]
[405954752,1771446646256,-500.0,0.00017808,2]
[405954753,1771446646267,-500.0,0.00017808,2]
[405954754,1771446646276,-500.0,0.00017808,2]
[405954755,1771446646288,-565.0,0.00017808,2]
[405954756,1771446646298,-513.0,0.00017808,2]
[405954757,1771446646308,-800.0,0.00017808,2]
[405954758,1771446646317,-2000.0,0.0001782,2]
[405954759,1771446646326,-2000.0,0.0001782,2]
[405954760,1771446646336,-2000.0,0.0001782,2]
[405954761,1771446646345,-2000.0,0.0001782,2]
[405954762,1771446646355,-200.0,0.00017856,2]
[405954763,1771446646364,-500.0,0.00017862,2]
[405954764,1771446646375,-881.0,0.00017862,2]
[405954765,1771446646385,-681.0,0.00017862,2]
[405954766,1771446646394,-500.0,0.00017862,2]
[405954767,1771446646403,-500.0,0.00017862,2]
[405954768,1771446646413,-500.0,0.00017862,2]
[405954769,1771446646422,-565.0,0.00017862,2]
[405954770,1771446646433,-513.0,0.00017863,2]
[405954771,1771446646442,-173.62051493,0.000179,3]
[405954772,1771446646451,-41155.84305179,0.000179,2]
[405954773,1771446646462,-753.28521143,0.000179,2]
[405954774,1771446646471,-3851.07048785,0.000179,2]
[405954775,1771446646480,-150.0,0.00017916,2]
[405954776,1771446646491,-1275.0,0.00017916,2]
[405954777,1771446646500,-1209.0,0.00017916,2]
[405954778,1771446646510,-3492.0,0.00017916,2]
[405954779,1771446646519,-500.0,0.00017917,2]
[405954780,1771446646530,-881.0,0.00017917,2]
[405954781,1771446646540,-681.0,0.00017917,2]
[405954782,1771446646551,-400.0,0.00017917,2]
[405954783,1771446646562,-500.0,0.00017917,2]
[405954784,1771446646573,-500.0,0.00017917,2]
[405954785,1771446646584,-565.0,0.00017917,2]
[405954786,1771446646596,-513.0,0.00017918,2]
[405954787,1771446646606,-300.0,0.0001797,2]
[405954788,1771446646617,-300.84929433,0.0001797,2]
[405954789,1771446646626,-700.0,0.0001797,2]
[405954790,1771446646636,-700.0,0.0001797,2]
[405954791,1771446646645,-700.0,0.0001797,2]
[405954792,1771446646654,-791.28,0.0001797,2]
[405954793,1771446646663,-500.0,0.00017972,2]
[405954794,1771446646673,-881.0,0.00017972,2]
[405954795,1771446646683,-681.0,0.00017972,2]
[405954796,1771446646692,-500.0,0.00017972,2]
[405954797,1771446646702,-500.0,0.00017972,2]
[405954798,1771446646713,-565.0,0.00017972,2]
[405954799,1771446646723,-513.0,0.00017972,2]
[405954800,1771446646734,-4054.0,0.00017973,2]
[405954801,1771446646743,-500.0,0.00017973,2]
[405954802,1771446646752,-500.0,0.00017973,2]
[405954803,1771446646762,-500.0,0.00017973,2]
[405954804,1771446646771,-500.0,0.00017973,2]
[405954805,1771446646780,-500.0,0.00017973,2]
[405954806,1771446646790,-500.0,0.00017973,2]
[405954807,1771446646799,-500.0,0.00017973,2]
[405954808,1771446646808,-500.0,0.00017973,2]
[405954809,1771446646818,-500.0,0.00017973,2]
[405954810,1771446646827,-500.0,0.00017973,2]
[405954811,1771446646837,-500.0,0.00017973,2]
[405954812,1771446646846,-308.83621385,0.00017973,2]
[405954813,1771446646855,-500.0,0.00017973,2]
[405954814,1771446646865,-500.0,0.00017973,2]
[405954815,1771446646874,-500.0,0.00017973,2]
[405954816,1771446646884,-500.0,0.00017973,2]
[405954817,1771446646896,-500.0,0.00017973,2]
[405954818,1771446646905,-500.0,0.00017973,2]
[405954819,1771446646915,-507.0,0.00017988,3]
[405954820,1771446646926,-300.0,0.00017999,2]
[405954821,1771446646935,-183.60170367,0.00017999,2]
[405954822,1771446646945,-247754.99934218,0.00018,2]
[405954823,1771446646955,-2996836.5021019,0.00018,2]
[405954824,1771446646973,-798.0,0.00018,2]
[405954825,1771446646985,-797.45793407,0.00018,2]
[405954826,1771446647031,-7965.92642379,0.00018,2]
[405954828,1771446886464,-500.0,6.541e-05,2]
[405954829,1771446886491,-250.0,6.599e-05,2]
[405954830,1771446886517,-250.0,6.643e-05,2]
[405954831,1771446886544,-7015.0,6.658e-05,2]
[405954832,1771446886570,-151.0,6.67e-05,2]
[405954833,1771446886596,-350.0,6.671e-05,2]
[405954834,1771446886624,-1004.24833384,6.672e-05,2]
[405954835,1771446886652,-150.0,6.672e-05,2]
[405954836,1771446886684,-500.0,6.672e-05,2]
[405954837,1771446886714,-500.0,6.672e-05,2]
[405954838,1771446886748,-500.0,6.672e-05,2]
[405954839,1771446886776,-500.0,6.672e-05,2]
[405954840,1771446886805,-500.0,6.672e-05,2]
[405954841,1771446886832,-500.0,6.672e-05,2]
[405954842,1771446886859,-289.80726141,6.672e-05,2]
[405954843,1771446887242,-14079.8888095,6.673e-05,2]
[405954844,1771446941523,-150.0,6.646e-05,2]
[405954845,1771446941554,-300.0,6.672e-05,2]
[405954846,1771446941585,-300.0,6.672e-05,2]
[405954847,1771446941615,-1200.0,6.672e-05,2]
[405954848,1771446941648,-250.0,6.673e-05,2]
[405954849,1771446941677,-164.0,6.673e-05,3]
[405954850,1771446941706,-157.0,6.673e-05,3]
[405954851,1771446941735,-150.0,6.673e-05,3]
[405954852,1771446941867,-14059.358,6.673e-05,2]
[405954853,1771446959587,-20000.0,6.673e-05,2]
[405954854,1771446973570,-300.0,6.672e-05,2]
[405954855,1771446973598,-156.0,6.673e-05,3]
[405954856,1771446973644,-19088.0,6.673e-05,2]
[405954857,1771446994114,242.5113,6.441e-05,2]
[405954858,1771447026327,156.0,6.441e-05,3]
[405954859,1771447086686,156.0,6.441e-05,3]
[405954860,1771447147318,156.0,6.441e-05,3]
[405954861,1771447148026,521.01615025,8e-05,10]
[405954862,1771447207439,-5500.0,6.563e-05,2]
[405954863,1771447296395,2669.566,6.442e-05,2]
[405954864,1771447296533,175.384,6.442e-05,2]
[405954865,1771447300344,-27320.0,6.563e-05,2]
[405954867,1771447774094,-301.31670054,6.562e-05,2]
[405954871,1771447831639,-300.0,6.562e-05,2]
[405954872,1771447831649,-1200.0,6.562e-05,2]
[405954873,1771447831658,-250.0,6.563e-05,2]
[405954874,1771447831670,-12009.72115438,6.573e-05,2]
[405954875,1771447831681,-1545.8998,7.205e-05,2]
[405954876,1771447831691,-420.0,7.218e-05,2]
[405954877,1771447831701,-1680.0,7.218e-05,2]
[405954878,1771447831711,-176.71142168,7.218e-05,2]
[405954879,1771447831721,-250.0,7.218e-05,2]
[405954880,1771447831731,-250.0,7.218e-05,2]
[405954881,1771447831740,-587.0,7.94e-05,2]
[405954882,1771447831750,-611.0,7.94e-05,2]
[405954883,1771447831759,-156.0,8e-05,3]
[405954884,1771447831769,-157.0,8e-05,3]
[405954885,1771447831778,-1332.34504,8.178e-05,2]
[405954886,1771447831787,-565.0,8.219e-05,2]
[405954887,1771447831797,-881.0,8.219e-05,2]
[405954888,1771447831806,-500.0,8.219e-05,2]
[405954889,1771447831816,-500.0,8.219e-05,2]
[405954890,1771447831825,-150.0,8.219e-05,2]
[405954891,1771447831834,-565.0,8.274e-05,2]
[405954892,1771447831844,-881.0,8.274e-05,2]
[405954893,1771447831853,-500.0,8.274e-05,2]
[405954894,1771447831862,-500.0,8.274e-05,2]
[405954895,1771447831872,-681.0,8.274e-05,2]
[405954897,1771447831884,-565.0,8.329e-05,2]
[405954899,1771447831893,-881.0,8.329e-05,2]
[405954901,1771447831902,-500.0,8.329e-05,2]
[405954904,1771447831911,-500.0,8.329e-05,2]
[405954907,1771447831921,-681.0,8.329e-05,2]
[405954909,1771447831930,-565.0,8.383e-05,2]
[405954912,1771447831939,-881.0,8.383e-05,2]
[405954914,1771447831948,-500.0,8.383e-05,2]
[405954916,1771447831958,-500.0,8.383e-05,2]
[405954918,1771447831967,-681.0,8.384e-05,2]
[405954920,1771447831975,-565.0,8.438e-05,2]
[405954922,1771447831984,-881.0,8.438e-05,2]
[405954924,1771447831994,-500.0,8.438e-05,2]
[405954926,1771447832003,-500.0,8.438e-05,2]
[405954928,1771447832013,-681.0,8.438e-05,2]
[405954930,1771447832021,-565.0,8.493e-05,2]
[405954932,1771447832031,-881.0,8.493e-05,2]
[405954933,1771447832040,-500.0,8.493e-05,2]
[405954936,1771447832050,-500.0,8.493e-05,2]
[405954938,1771447832064,-681.0,8.493e-05,2]
[405954940,1771447832073,-565.0,8.548e-05,2]
[405954942,1771447832083,-881.0,8.548e-05,2]
[405954944,1771447832092,-500.0,8.548e-05,2]
[405954946,1771447832101,-500.0,8.548e-05,2]
[405954948,1771447832111,-681.0,8.548e-05,2]
[405954950,1771447832120,-15842.65822708,8.592e-05,2]
[405954952,1771447832129,-565.0,8.603e-05,2]
[405954954,1771447832139,-881.0,8.603e-05,2]
[405954955,1771447832149,-500.0,8.603e-05,2]
[405954957,1771447832158,-500.0,8.603e-05,2]
[405954959,1771447832169,-681.0,8.603e-05,2]
[405954962,1771447832178,-565.0,8.657e-05,2]
[405954963,1771447832188,-881.0,8.657e-05,2]
[405954964,1771447832197,-361.04333663,8.657e-05,2]
[405954965,1771447832206,-500.0,8.657e-05,2]
[405954966,1771447832215,-681.0,8.658e-05,2]
[405954967,1771447832224,-250.0,8.671e-05,2]
[405954968,1771447832234,-565.0,8.712e-05,2]
[405954969,1771447832243,-881.0,8.712e-05,2]
[405954970,1771447832252,-500.0,8.712e-05,2]
[405954971,1771447832262,-681.0,8.712e-05,2]
[405954973,1771447832271,-823.0,8.734e-05,2]
[405954974,1771447832280,-565.0,8.767e-05,2]
[405954975,1771447832288,-881.0,8.767e-05,2]
[405954976,1771447832298,-500.0,8.767e-05,2]
[405954977,1771447832307,-681.0,8.767e-05,2]
[405954978,1771447832316,-500.0,8.768e-05,2]
[405954979,1771447832325,-565.0,8.822e-05,2]
[405954980,1771447832335,-881.0,8.822e-05,2]
[405954981,1771447832344,-170.77627145,8.822e-05,2]
[405954982,1771447832354,-681.0,8.822e-05,2]
[405954983,1771447832363,-565.0,8.877e-05,2]
[405954984,1771447832372,-881.0,8.877e-05,2]
[405954985,1771447832381,-681.0,8.877e-05,2]
[405954986,1771447832390,-885.56,8.907e-05,2]
[405954987,1771447832400,-565.0,8.931e-05,2]
[405954988,1771447832409,-881.0,8.931e-05,2]
[405954989,1771447832419,-681.0,8.932e-05,2]
[405954990,1771447832429,-156.0,8.933e-05,3]
[405954991,1771447832438,-565.0,8.986e-05,2]
[405954992,1771447832447,-881.0,8.986e-05,2]
[405954993,1771447832456,-681.0,8.986e-05,2]
[405954994,1771447832466,-565.0,9.041e-05,2]
[405954995,1771447832477,-881.0,9.041e-05,2]
[405954996,1771447832487,-681.0,9.041e-05,2]
[405954997,1771447832499,-565.0,9.096e-05,2]
[405954998,1771447832513,-881.0,9.096e-05,2]
[405954999,1771447832523,-681.0,9.096e-05,2]
[405955000,1771447832533,-565.0,9.151e-05,2]
[405955001,1771447832542,-881.0,9.151e-05,2]
[405955002,1771447832554,-681.0,9.151e-05,2]
[405955003,1771447832565,-565.0,9.205e-05,2]
[405955004,1771447832576,-881.0,9.205e-05,2]
[405955005,1771447832586,-681.0,9.206e-05,2]
[405955006,1771447832595,-565.0,9.26e-05,2]
[405955007,1771447832605,-881.0,9.26e-05,2]
[405955008,1771447832614,-681.0,9.26e-05,2]
[405955009,1771447832624,-565.0,9.315e-05,2]
[405955010,1771447832634,-881.0,9.315e-05,2]
[405955011,1771447832643,-681.0,9.315e-05,2]
[405955012,1771447832653,-565.0,9.37e-05,2]
[405955013,1771447832663,-881.0,9.37e-05,2]
[405955014,1771447832674,-681.0,9.37e-05,2]
[405955015,1771447832683,-157.0,9.4e-05,3]
[405955016,1771447832692,-565.0,9.424e-05,2]
[405955017,1771447832702,-881.0,9.424e-05,2]
[405955018,1771447832711,-681.0,9.425e-05,2]
[405955019,1771447832721,-572.03414977,9.479e-05,2]
[405955020,1771447832731,-890.52169731,9.479e-05,2]
[405955021,1771447832740,-681.0,9.479e-05,2]
[405955022,1771447832750,-683.13742294,9.534e-05,2]
[405955023,1771447832759,-3498.9719,9.57e-05,2]
[405955024,1771447832768,-1152.0,9.608e-05,2]
[405955025,1771447832778,-9999.99,9.67e-05,2]
[405955026,1771447832788,-156.0,9.867e-05,3]
[405955027,1771447832798,-151.0,0.0001,2]
[405955028,1771447832807,-151.0,0.0001,2]
[405955029,1771447832817,-151.0,0.0001,2]
[405955030,1771447832830,-151.0,0.0001,2]
[405955031,1771447832839,-151.0,0.0001,2]
[405955032,1771447832849,-151.0,0.0001,2]
[405955033,1771447832858,-151.0,0.0001,2]
[405955034,1771447832867,-151.0,0.0001,2]
[405955035,1771447832876,-151.0,0.0001,2]
[405955036,1771447832885,-151.0,0.0001,2]
[405955037,1771447832894,-151.0,0.0001,2]
[405955038,1771447832903,-151.0,0.0001,2]
[405955039,1771447832912,-151.0,0.0001,2]
[405955040,1771447832922,-151.0,0.0001,2]
[405955041,1771447832931,-151.0,0.0001,2]
[405955042,1771447832940,-151.0,0.0001,2]
[405955043,1771447832949,-151.0,0.0001,2]
[405955044,1771447832959,-151.0,0.0001,2]
[405955045,1771447832968,-151.0,0.0001,2]
[405955046,1771447832977,-151.0,0.0001,2]
[405955047,1771447832987,-9999.99,0.00010475,2]
[405955048,1771447832996,-999.99,0.00010475,2]
[405955049,1771447833005,-7659.5,0.00010475,2]
[405955050,1771447833014,-150.99,0.00010475,2]
[405955051,1771447833023,-4239.26,0.00010475,2]
[405955052,1771447833033,-299.99,0.00010475,2]
[405955053,1771447833042,-9999.99,0.00010475,2]
[405955054,1771447833051,-1613.0,0.00010568,2]
[405955055,1771447833060,-156.0,0.000108,3]
[405955056,1771447833069,-157.0,0.000108,3]
[405955057,1771447833079,-527.37391117,0.00010993,2]
[405955058,1771447833089,-3044.9477,0.00010999,2]
[405955059,1771447833098,-32853.2111,0.00010999,2]
[405955060,1771447833107,-6715.4735,0.00010999,2]
[405955061,1771447833117,-1000.0,0.00010999,2]
[405955062,1771447833126,-4109.79551554,0.00010999,2]
[405955063,1771447833135,-1001.93015363,0.00011,2]
[405955064,1771447833145,-1687.0,0.00011625,2]
[405955065,1771447833154,-156.0,0.00011733,3]
[405955066,1771447833163,-4109.79551553,0.00011985,2]
[405955067,1771447833174,-157.0,0.000122,3]
[405955068,1771447833185,-5529.0,0.000122,5]
[405955069,1771447833195,-156.0,0.00012667,3]
[405955070,1771447833205,-340.0042292,0.0001291,2]
[405955071,1771447833214,-160.0,0.00012921,2]
[405955072,1771447833223,-173.62051493,0.00012921,2]
[405955073,1771447833232,-4109.79551553,0.00012971,2]
[405955074,1771447833242,-500.0,0.00013326,2]
[405955075,1771447833251,-500.0,0.00013326,2]
[405955076,1771447833261,-500.0,0.00013326,2]
[405955077,1771447833270,-500.0,0.00013326,2]
[405955078,1771447833280,-500.0,0.00013326,2]
[405955079,1771447833289,-500.0,0.00013326,2]
[405955080,1771447833298,-500.0,0.00013326,2]
[405955081,1771447833308,-500.0,0.00013326,2]
[405955082,1771447833318,-500.0,0.00013326,2]
[405955083,1771447833328,-500.0,0.00013326,2]
[405955084,1771447833337,-500.0,0.00013326,2]
[405955085,1771447833347,-500.0,0.00013326,2]
[405955086,1771447833356,-500.0,0.00013326,2]
[405955087,1771447833365,-500.0,0.00013326,2]
[405955088,1771447833375,-500.0,0.00013326,2]
[405955089,1771447833384,-500.0,0.00013326,2]
[405955090,1771447833395,-500.0,0.00013326,2]
[405955091,1771447833405,-500.0,0.00013326,2]
[405955092,1771447833414,-500.0,0.00013326,2]
[405955093,1771447833425,-500.0,0.00013326,2]
[405955094,1771447833434,-277.35679052,0.00013326,2]
[405955095,1771447833444,-156.0,0.000136,3]
[405955096,1771447833453,-157.0,0.000136,3]
[405955097,1771447833463,-500.0,0.00013698,2]
[405955098,1771447833472,-200.0,0.00013699,2]
[405955099,1771447833482,-362.65986097,0.00013874,2]
[405955100,1771447833491,-4109.79551553,0.00013957,2]
[405955101,1771447833502,-150.0,0.00014123,2]
[405955102,1771447833513,-500.0,0.00014123,2]
[405955103,1771447833526,-340.0042292,0.00014157,2]
[405955104,1771447833536,-500.0,0.00014178,2]
[405955105,1771447833550,-500.0,0.00014233,2]
[405955106,1771447833565,-500.0,0.00014287,2]
[405955107,1771447833575,-500.0,0.00014342,2]
[405955108,1771447833585,-500.0,0.00014397,2]
[405955109,1771447833595,-533.52599711,0.00014452,2]
[405955110,1771447833607,-156.0,0.00014533,3]
[405955111,1771447833617,-1508.0,0.00014667,2]
[405955112,1771447833626,-152.0,0.00014667,2]
[405955113,1771447833636,-153.0,0.00014667,2]
[405955114,1771447833646,-152.0,0.00014667,2]
[405955115,1771447833655,-1508.0,0.00014667,2]
[405955116,1771447833665,-1508.0,0.00014667,2]
[405955117,1771447833675,-152.0,0.00014667,2]
[405955118,1771447833685,-152.0,0.00014667,2]
[405955119,1771447833694,-1508.0,0.00014667,2]
[405955120,1771447833704,-152.0,0.00014667,2]
[405955121,1771447833714,-152.0,0.00014667,2]
[405955122,1771447833723,-1508.0,0.00014667,2]
[405955123,1771447833733,-152.0,0.00014667,2]
[405955124,1771447833742,-152.0,0.00014667,2]
[405955125,1771447833752,-1508.0,0.00014667,2]
[405955126,1771447833761,-152.0,0.00014667,2]
[405955127,1771447833771,-152.0,0.00014667,2]
[405955128,1771447833781,-1508.0,0.00014667,2]
[405955129,1771447833791,-153.0,0.00014667,2]
[405955130,1771447833801,-152.0,0.00014667,2]
[405955131,1771447833811,-152.0,0.00014667,2]
[405955132,1771447833821,-153.0,0.00014667,2]
[405955133,1771447833830,-153.0,0.00014667,2]
[405955134,1771447833840,-153.0,0.00014667,2]
[405955135,1771447833848,-153.0,0.00014667,2]
[405955136,1771447833858,-153.0,0.00014667,2]
[405955137,1771447833867,-162.74,0.00014916,2]
[405955138,1771447833876,-1338.0,0.00014916,2]
[405955139,1771447833887,-638.503,0.00014916,2]
[405955140,1771447833897,-3528.442,0.00014916,2]
[405955141,1771447833907,-1164.0,0.00014916,2]
[405955142,1771447833917,-150.0,0.00014916,2]
[405955143,1771447833927,-1275.0,0.00014916,2]
[405955144,1771447833936,-1209.0,0.00014916,2]
[405955145,1771447833946,-5973.0,0.00014916,2]
[405955146,1771447833955,-412.0,0.00014916,2]
[405955147,1771447833966,-4109.79551553,0.00014942,2]
[405955148,1771447833975,-157.0,0.00015,3]
[405955149,1771447833985,-211.416485,0.00015326,7]
[405955150,1771447833997,-340.0042292,0.00015405,2]
[405955151,1771447834007,-156.0,0.00015467,3]
[405955152,1771447834019,-4109.79551553,0.00015928,2]
[405955153,1771447834028,-507.0,0.0001605,2]
[405955154,1771447834038,-1508.0,0.00016333,2]
[405955155,1771447834048,-1508.0,0.00016333,2]
[405955156,1771447834059,-1508.0,0.00016333,2]
[405955157,1771447834071,-152.0,0.00016333,2]
[405955158,1771447834082,-153.0,0.00016333,2]
[405955159,1771447834092,-1508.0,0.00016333,2]
[405955160,1771447834101,-152.0,0.00016333,2]
[405955161,1771447834110,-153.0,0.00016333,2]
[405955162,1771447834121,-1508.0,0.00016333,2]
[405955163,1771447834133,-152.0,0.00016333,2]
[405955164,1771447834142,-152.0,0.00016333,2]
[405955165,1771447834151,-152.0,0.00016333,2]
[405955166,1771447834161,-152.0,0.00016333,2]
[405955167,1771447834172,-152.0,0.00016333,2]
[405955168,1771447834181,-152.0,0.00016333,2]
[405955169,1771447834192,-152.0,0.00016333,2]
[405955170,1771447834201,-153.0,0.00016333,2]
[405955171,1771447834210,-1508.0,0.00016333,2]
[405955172,1771447834220,-152.0,0.00016333,2]
[405955173,1771447834230,-1508.0,0.00016333,2]
[405955174,1771447834239,-153.0,0.00016333,2]
[405955175,1771447834249,-1508.0,0.00016333,2]
[405955176,1771447834258,-153.0,0.00016333,2]
[405955177,1771447834270,-1508.0,0.00016333,2]
[405955178,1771447834280,-153.0,0.00016333,2]
[405955179,1771447834291,-1508.0,0.00016333,2]
[405955180,1771447834301,-153.0,0.00016333,2]
[405955181,1771447834311,-1508.0,0.00016333,2]
[405955182,1771447834322,-153.0,0.00016333,2]
[405955183,1771447834331,-1508.0,0.00016333,2]
[405955184,1771447834342,-153.0,0.00016333,2]
[405955185,1771447834361,-153.0,0.00016333,2]
[405955186,1771447834375,-152.0,0.00016333,2]
[405955187,1771447834386,-152.0,0.00016333,2]
[405955188,1771447834397,-152.0,0.00016333,2]
[405955189,1771447834406,-152.0,0.00016333,2]
[405955190,1771447834416,-152.0,0.00016333,2]
[405955191,1771447834431,-152.0,0.00016333,2]
[405955192,1771447834440,-49465.54078422,0.0001638,2]
[405955193,1771447834458,-1254.41808677,0.0001638,2]
[405955194,1771447834474,-175.04112901,0.0001638,2]
[405955195,1771447834483,-96.86473993,0.000164,3]
[405955196,1771447834509,-500.0,0.00016389,2]
[405955197,1771447834518,-77.43918341,0.00016389,2]
[405955198,1771447834539,-422.56081659,0.00016389,2]
[405955199,1771447834550,-500.0,0.00016389,2]
[405955200,1771447834560,-500.0,0.00016389,2]
[405955201,1771447834570,-59.13526007,0.000164,3]
[405955202,1771447834580,-157.0,0.000164,3]
[405955203,1771447834590,-156.0,0.00016438,2]
[405955204,1771447834600,-156.0,0.00016438,2]
[405955205,1771447834609,-61.08148964,0.00016438,2]
[405955209,1771447837782,-500.0,8.274e-05,2]
[405955210,1771447837792,-150.0,8.274e-05,2]
[405955211,1771447837802,-396.26,8.329e-05,2]
[405955212,1771447837986,-103.74,8.329e-05,2]
[405955213,1771447837996,-500.0,8.384e-05,2]
[405955214,1771447838005,-500.0,8.438e-05,2]
[405955216,1771447838015,-400.0,8.493e-05,2]
[405955218,1771447838024,-4129.7286,9.57e-05,2]
[405955220,1771447838033,-919.0,0.00014916,2]
[405955222,1771447838042,-500.0,0.00016389,2]